bitfinex/quotes_ETHUSD_20250523
["timestamp","ask_amount","ask_price","bid_price","bid_amount"]
[1747964584729,3.73076489,2680.5,2680.2,8.0]
[1747964585320,3.73076489,2680.5,2680.3,0.79066052]
[1747964585629,3.73067459,2680.5,2680.3,0.79066052]
[1747964586385,1.3581,2680.9,2680.3,0.79066052]
[1747964586590,1.4261,2681.3,2680.4,8.35112635]
[1747964586801,3.729308,2681.5,2680.6,0.7808]
[1747964587026,3.72990064,2681.1,2680.8,8.0]
[1747964587340,3.73005687,2681.0,2680.8,8.0]
[1747964587842,3.73005687,2681.0,2680.9,0.35112635]
[1747964588238,3.73005687,2681.0,2680.9,36.04512635]
[1747964589914,3.73005687,2681.0,2680.9,8.35112635]
[1747964590243,4.47604536,2681.0,2680.9,36.04212635]
[1747964591634,4.47604536,2681.0,2680.9,35.691]
[1747964592754,3.73078644,2680.4,2680.3,0.43768214]
[1747964592957,3.73078644,2680.4,2680.3,35.69]
[1747964594348,3.72487859,2680.4,2680.3,36.03909157]
[1747964595678,3.72487859,2680.4,2680.3,24.85709157]
[1747964595880,3.72487859,2680.4,2680.3,36.03709157]
[1747964596186,3.73120405,2680.1,2680.0,0.13464185]
[1747964596380,3.73120405,2680.1,2680.0,27.82264185]
[1747964596959,3.73120405,2680.1,2680.0,27.82164185]
[1747964597159,3.73120405,2680.1,2680.0,0.13464185]
[1747964597365,3.73134328,2680.0,2679.9,16.1]
[1747964597564,3.73134328,2680.0,2679.9,43.787]
[1747964598186,3.73134328,2680.0,2679.9,51.787]
[1747964598684,3.73134328,2680.0,2679.9,40.607]
[1747964598864,3.73134328,2680.0,2679.9,51.787]
[1747964599969,3.73119159,2680.2,2680.0,8.0]
[1747964600183,4.47596329,2681.0,2680.0,8.0]
[1747964600184,1.4066,2680.9,2680.0,8.0]
[1747964600385,3.7308978,2680.4,2680.0,8.0]
[1747964600590,1.4066,2680.9,2680.0,8.0]
[1747964600753,3.73086539,2680.4,2680.0,11.73132204]
[1747964600955,3.73086539,2680.4,2680.0,8.0]
[1747964602230,3.73022978,2680.8,2680.0,8.0]
[1747964602399,3.73055129,2680.6,2680.3,0.7869]
[1747964602581,3.73058466,2680.6,2680.4,16.507]
[1747964602781,3.73058466,2680.6,2680.5,19.18]
[1747964603207,3.73031888,2680.8,2680.5,19.18]
[1747964603484,3.73035737,2680.8,2680.5,19.18]
[1747964603679,3.73073173,2680.5,2680.3,0.7869]
[1747964603879,1.3579,2681.2,2680.1,0.58523247]
[1747964603880,3.73100214,2680.3,2680.1,0.58523247]
[1747964604117,3.73100214,2680.3,2680.2,35.687]
[1747964604324,3.73100214,2680.3,2680.2,8.0]
[1747964604497,4.61297324,2680.3,2680.2,8.0]
[1747964604818,3.73106484,2680.2,2680.1,17.09223247]
[1747964605535,3.73106484,2680.2,2680.1,25.09223247]
[1747964605726,3.73134328,2680.0,2679.9,16.1]
[1747964605921,3.73134328,2680.0,2679.9,32.606]
[1747964606145,3.73134328,2680.0,2679.9,16.1]
[1747964606285,5.12264328,2680.0,2679.9,16.1]
[1747964606600,5.11793221,2680.0,2679.9,16.1]
[1747964606790,5.11793221,2680.0,2679.5,0.58523247]
[1747964606791,3.73190028,2679.6,2679.5,0.58523247]
[1747964606991,3.73203955,2679.5,2679.4,16.506]
[1747964608123,3.73203955,2679.5,2679.3,11.18703358]
[1747964608124,3.73217884,2679.4,2679.3,0.00703358]
[1747964608679,1.3913,2679.8,2679.3,0.00703358]
[1747964608680,1.3913,2679.8,2679.3,11.53752171]
[1747964608881,5.1229574,2679.8,2679.3,12.10947889]
[1747964609113,3.73176101,2679.7,2679.3,12.10947889]
[1747964609344,3.73190028,2679.6,2679.3,12.10947889]
[1747964609545,3.73176101,2679.7,2679.3,12.10947889]
[1747964609736,3.73215357,2679.5,2679.4,0.35048813]
[1747964610547,3.73191392,2679.6,2679.4,0.35048813]
[1747964610719,3.73190028,2679.6,2679.5,16.508]
[1747964610925,3.73190028,2679.6,2679.5,24.508]
[1747964611253,3.73190028,2679.6,2679.5,24.85848813]
[1747964612419,3.73169681,2679.8,2679.5,24.85848813]
[1747964612619,3.73155098,2679.9,2679.5,16.85848813]
[1747964612955,3.7317104,2679.8,2679.6,0.7869]
[1747964613359,5.12287678,2680.2,2679.5,0.35048813]
[1747964613360,3.73190028,2679.6,2679.5,0.35048813]
[1747964613559,3.73190028,2679.6,2679.5,28.00448813]
[1747964613717,5.12299484,2680.2,2679.5,28.00448813]
[1747964613919,3.73183191,2679.7,2679.5,28.00448813]
[1747964614144,3.73167062,2679.8,2679.5,28.00448813]
[1747964614356,3.73123838,2680.1,2679.5,28.00448813]
[1747964614561,3.73149549,2679.9,2679.5,28.00448813]
[1747964615253,3.73164381,2679.8,2679.5,28.00448813]
[1747964615932,3.73164381,2679.8,2679.6,0.35048813]
[1747964616878,3.7315539,2679.9,2679.6,0.35048813]
[1747964617192,1.4011,2679.8,2679.6,0.35048813]
[1747964617395,1.4011,2679.8,2557.9,10.0]
[1747964617396,5.13225414,2678.7,2678.6,1.15087443]
[1747964617679,5.13225414,2678.7,2677.1,3.51161271]
[1747964617680,13.13295109,2678.2,2677.1,3.51161271]
[1747964617853,13.13309051,2678.1,2678.0,0.29883092]
[1747964618037,43.20249482,2678.1,2678.0,0.09441207]
[1747964618463,5.07144577,2677.2,2677.1,3.51161271]
[1747964618849,5.06544186,2677.2,2677.1,3.51161271]
[1747964619176,5.06544186,2677.2,2677.1,0.05]
[1747964622087,11.73817801,2675.1,2675.0,6.3790952]
[1747964622385,3.73817801,2675.1,2675.0,6.3790952]
[1747964622540,11.73817801,2675.1,2675.0,6.3790952]
[1747964622980,13.10327801,2675.1,2675.0,6.3790952]
[1747964623186,3.73943609,2674.2,2674.1,0.05]
[1747964623341,5.10453609,2674.2,2674.1,0.05]
[1747964623543,3.73943609,2674.2,2674.1,0.05]
[1747964624144,3.73943609,2674.2,2674.1,18.002]
[1747964625052,3.73263366,2674.2,2674.1,18.002]
[1747964625477,3.73263366,2674.2,2674.1,0.05]
[1747964625673,4.61916147,2674.2,2674.1,0.05]
[1747964627070,3.73263366,2674.2,2674.1,0.05]
[1747964632491,3.7392778,2674.4,2673.4,3.74050481]
[1747964632492,3.73986394,2673.9,2673.4,3.74050481]
[1747964632692,3.73986394,2673.9,2672.3,16.90422674]
[1747964632693,3.7396552,2674.1,2673.8,11.201]
[1747964632898,3.73971578,2674.0,2673.9,2.7333]
[1747964633190,5.17927801,2675.1,2672.5,1.89917587]
[1747964633191,3.73968249,2674.1,2672.5,1.89917587]
[1747964633355,1.4411,2675.1,2672.5,5.64088263]
[1747964633552,3.73953396,2674.2,2673.6,3.74015964]
[1747964633951,3.73845751,2674.9,2673.6,14.5]
[1747964634165,3.73954557,2674.2,2673.6,18.24026749]
[1747964634407,3.73954557,2674.2,2673.7,11.203]
[1747964634570,3.73936676,2674.3,2673.7,14.94307003]
[1747964634769,3.73952651,2674.2,2673.8,2.94432675]
[1747964634990,11.203,2675.5,2673.8,2.94432675]
[1747964634991,3.73967083,2674.1,2673.8,2.94432675]
[1747964635208,3.73967083,2674.1,2673.9,34.101]
[1747964635405,3.73971578,2674.0,2673.9,34.101]
[1747964635594,3.73971578,2674.0,2673.9,35.4687]
[1747964635780,3.73959952,2674.1,2673.9,46.6727]
[1747964636009,3.73957593,2674.1,2674.0,3.75002344]
[1747964636184,8.0,2675.6,2674.0,3.75002344]
[1747964636383,3.73957593,2674.1,2674.0,3.75002344]
[1747964637000,3.73951652,2674.2,2674.0,3.75002344]
[1747964637511,3.73957593,2674.1,2674.0,3.75002344]
[1747964638018,3.73951019,2674.2,2674.0,3.75002344]
[1747964638374,3.73957593,2674.1,2674.0,3.75002344]
[1747964638810,3.73945206,2674.2,2674.0,3.75002344]
[1747964639204,3.73957593,2674.1,2674.0,3.75002344]
[1747964641325,3.73957593,2674.1,2674.0,11.75002344]
[1747964641826,3.73918039,2674.4,2674.0,11.75002344]
[1747964642000,3.73945199,2674.2,2674.1,3.75002344]
[1747964642203,3.73945199,2674.2,2674.0,8.0]
[1747964642204,3.73957593,2674.1,2674.0,8.0]
[1747964642528,3.73971578,2674.0,2673.9,34.103]
[1747964643325,3.74036053,2673.6,2673.2,36.6701]
[1747964643625,3.74036053,2673.6,2673.4,8.0]
[1747964643829,3.73508471,2673.5,2673.3,29.176]
[1747964644201,5.1727057,2674.4,2673.2,17.4651]
[1747964644405,3.74069502,2673.3,2673.2,28.6701]
[1747964644741,3.74062082,2673.4,2673.3,25.973]
[1747964645202,3.73943609,2674.2,2673.3,25.973]
[1747964645405,3.74055509,2673.4,2673.3,25.973]
[1747964645618,3.74055509,2673.4,2673.3,17.973]
[1747964646205,3.73993726,2673.9,2673.1,0.05]
[1747964646403,1.3335,2674.1,2673.2,17.973]
[1747964646629,3.73971578,2674.0,2673.2,17.973]
[1747964646804,3.74069502,2673.3,2673.2,17.973]
[1747964648528,3.74083495,2673.2,2673.1,18.025]
[1747964650044,3.74075617,2673.3,2673.1,18.025]
[1747964650356,3.74083495,2673.2,2673.1,18.025]
[1747964650554,14.94641571,2674.3,2673.2,1.4436]
[1747964650555,3.7404516,2673.5,2673.2,1.4436]
[1747964650715,3.74045006,2673.5,2673.2,1.4436]
[1747964651056,3.73879759,2674.7,2673.3,8.0]
[1747964651256,5.19397684,2674.6,2673.3,11.74059572]
[1747964651427,5.56791805,2674.6,2673.5,3.74035575]
[1747964651630,5.56791805,2674.6,2673.7,8.0]
[1747964651631,1.4551,2674.6,2673.7,8.0]
[1747964651815,1.4551,2674.6,2673.8,35.4615]
[1747964652016,3.73985564,2673.9,2673.8,17.4855]
[1747964652249,3.73985564,2673.9,2673.8,33.605]
[1747964652456,3.73975714,2674.0,2673.8,33.605]
[1747964652655,3.73963942,2674.1,2673.8,33.605]
[1747964652916,3.73950473,2674.2,2673.8,37.35502344]
[1747964653154,1.4551,2674.6,2673.8,37.35502344]
[1747964653339,3.73985564,2673.9,2673.8,16.139]
[1747964653540,3.73985564,2673.9,2673.8,33.604]
[1747964653745,3.73871565,2674.8,2673.8,33.604]
[1747964653945,3.73927403,2674.4,2673.8,33.604]
[1747964654148,3.73921796,2674.4,2673.9,11.73984391]
[1747964654347,3.73911645,2674.5,2674.0,3.73969191]
[1747964654573,3.73929301,2674.4,2673.9,8.0]
[1747964654882,1.3995,2674.9,2673.9,3.02799527]
[1747964655071,3.73922104,2674.4,2673.9,6.76777641]
[1747964655854,5.13798405,2674.9,2674.0,5.06183012]
[1747964656054,3.73909046,2674.5,2674.0,8.81185356]
[1747964656256,3.73903456,2674.5,2674.0,8.81186638]
[1747964657058,3.73916307,2674.4,2674.2,0.4414738]
[1747964657394,3.73889355,2674.6,2674.2,0.4414738]
[1747964657395,3.73908339,2674.5,2674.2,0.4414738]
[1747964657593,3.73892937,2674.6,2674.2,0.4414738]
[1747964657957,3.73909182,2674.5,2674.2,0.4414738]
[1747964658654,3.73929626,2674.3,2674.2,0.4414738]
[1747964658854,3.73917867,2674.4,2674.2,0.4414738]
[1747964658855,3.73918014,2674.4,2674.2,0.4414738]
[1747964659091,0.51379699,2674.8,2674.2,0.4414738]
[1747964659294,3.73904439,2674.5,2674.2,0.4414738]
[1747964659502,3.73883398,2674.7,2674.2,0.4414738]
[1747964659699,3.73884626,2674.7,2674.2,0.4414738]
[1747964659901,1.3438,2675.3,2674.2,0.4414738]
[1747964660061,3.73870044,2674.8,2674.3,3.73929197]
[1747964660399,3.73847198,2674.9,2674.4,28.669]
[1747964660712,1.3438,2675.3,2674.4,28.669]
[1747964660713,3.73866981,2674.8,2674.4,28.669]
[1747964660874,5.14396914,2675.7,2674.6,3.73880721]
[1747964661200,3.73783212,2675.4,2674.8,5.21688531]
[1747964661355,3.73791339,2675.3,2675.0,8.4414738]
[1747964661553,0.04672416,2675.6,2675.0,8.4414738]
[1747964661795,3.73796598,2675.3,2675.1,28.669]
[1747964662104,3.73754642,2675.6,2675.1,32.40717707]
[1747964662402,3.73754642,2675.6,2675.1,32.40706256]
[1747964662900,3.73749199,2675.6,2675.2,11.73797848]
[1747964663394,3.73749199,2675.6,2675.2,8.0]
[1747964663991,3.7378581,2675.4,2675.2,8.0]
[1747964664196,3.73769448,2675.5,2675.2,8.0]
[1747964664805,3.73789855,2675.3,2675.2,0.4414738]
[1747964664989,4.28789855,2675.3,2675.2,0.4414738]
[1747964665673,3.73789855,2675.3,2675.2,0.4414738]
[1747964666003,3.73785906,2675.4,2675.1,17.461]
[1747964666208,3.73792467,2675.3,2675.1,17.461]
[1747964666616,3.73803827,2675.2,2675.1,28.664]
[1747964666919,3.73831775,2675.0,2674.9,16.137]
[1747964667077,3.7374558,2675.7,2675.0,8.0]
[1747964667283,3.7380224,2675.3,2675.0,8.0]
[1747964667663,3.73808244,2675.2,2675.0,8.0]
[1747964668101,3.73808244,2675.2,2675.1,19.203]
[1747964668307,3.73761913,2675.5,2675.1,19.203]
[1747964668464,3.73790733,2675.3,2675.1,19.203]
[1747964668880,3.73783427,2675.4,2675.1,19.203]
[1747964669291,3.73789855,2675.3,2675.2,12.6296]
[1747964669532,3.73789855,2675.3,2675.2,11.203]
[1747964670078,3.73803827,2675.2,2675.1,8.0]
[1747964670286,3.73803827,2675.2,2675.1,36.661]
[1747964671119,3.737974,2675.3,2675.1,36.661]
[1747964671519,3.73803827,2675.2,2675.1,36.661]
[1747964671817,3.73796006,2675.3,2675.1,36.659]
[1747964672483,3.73803827,2675.2,2675.1,25.457]
[1747964672699,3.73797199,2675.3,2675.1,36.659]
[1747964673013,3.73803827,2675.2,2675.1,36.659]
[1747964673516,3.73796183,2675.3,2675.1,36.659]
[1747964673671,3.73803827,2675.2,2675.1,36.659]
[1747964673872,3.73796496,2675.3,2675.1,36.659]
[1747964674420,3.73798877,2675.3,2675.1,36.659]
[1747964676023,3.73766906,2675.5,2675.1,36.659]
[1747964676179,3.7379001,2675.3,2675.1,36.659]
[1747964678289,3.73791326,2675.3,2675.1,36.659]
[1747964678804,3.73791326,2675.3,2675.2,28.116]
[1747964679328,3.73791326,2675.3,2675.2,16.914]
[1747964679483,3.73791326,2675.3,2675.2,28.116]
[1747964679826,1.52872182,2675.7,2675.2,28.116]
[1747964679827,5.26606679,2675.7,2675.2,28.116]
[1747964679991,3.73789855,2675.3,2675.2,28.116]
[1747964680313,3.73782057,2675.4,2675.2,28.116]
[1747964680521,3.73789855,2675.3,2675.2,28.116]
[1747964680884,3.73803827,2675.2,2675.1,8.0]
[1747964681081,4.48563455,2675.2,2675.1,36.116]
[1747964681274,3.73803827,2675.2,2675.1,24.914]
[1747964681493,4.28803827,2675.2,2675.1,36.116]
[1747964681691,3.73831775,2675.0,2674.9,16.137]
[1747964682019,4.28831775,2675.0,2674.9,33.051]
[1747964682921,4.28831775,2675.0,2674.9,16.137]
[1747964683120,5.55960937,2675.0,2674.9,16.137]
[1747964683693,3.73887684,2674.6,2674.5,0.4414738]
[1747964683894,3.73887684,2674.6,2674.5,36.5584738]
[1747964684223,3.73887684,2674.6,2674.5,25.3564738]
[1747964684418,5.03663896,2674.6,2674.5,0.4414738]
[1747964684623,4.28901663,2674.5,2674.4,0.4414738]
[1747964684997,3.73901663,2674.5,2674.4,0.4414738]
[1747964685790,3.73901663,2674.5,2674.2,16.915]
[1747964685995,1.27129162,2675.0,2674.2,16.915]
[1747964685996,1.4048,2675.1,2674.4,1.4895]
[1747964686223,3.73825577,2675.1,2674.6,11.73883241]
[1747964686421,3.73796512,2675.3,2674.9,8.0]
[1747964686621,3.73817801,2675.1,2675.0,16.916]
[1747964686833,3.73797765,2675.3,2675.0,28.119]
[1747964687136,3.73780117,2675.4,2675.1,8.0]
[1747964687307,3.73720008,2675.8,2675.3,8.0]
[1747964687508,0.05,2675.9,2675.8,11.73720008]
[1747964687737,0.05,2675.9,2675.8,52.252]
[1747964689741,0.05,2675.9,2675.8,57.37670008]
[1747964690037,0.05,2675.9,2675.8,61.03254746]
[1747964691039,0.05,2675.9,2675.8,75.53254746]
[1747964693140,0.04098714,2675.9,2675.8,75.53254746]
[1747964695599,3.73580394,2676.8,2676.0,1.4527]
[1747964695863,3.73660689,2676.3,2676.0,1.4527]
[1747964696073,3.73627594,2676.5,2676.2,8.0]
[1747964696563,3.73648514,2676.4,2676.2,8.0]
[1747964698031,3.73650188,2676.3,2676.2,8.0]
[1747964698340,3.73650188,2676.3,2676.1,0.43910785]
[1747964698341,3.7366415,2676.2,2676.1,0.43910785]
[1747964698540,5.08066462,2676.2,2676.1,0.43910785]
[1747964698749,6.42035584,2676.2,2676.1,17.34710785]
[1747964699061,6.42035584,2676.2,2676.1,25.34710785]
[1747964699259,5.6730415,2676.2,2676.1,16.908]
[1747964699597,5.66780309,2676.2,2676.1,16.908]
[1747964700272,1.3864,2676.6,2676.1,16.908]
[1747964700447,3.73619652,2676.6,2676.1,22.11180177]
[1747964700647,3.73597466,2676.7,2676.1,24.69668238]
[1747964700842,3.73597466,2676.7,2676.1,22.11180177]
[1747964701156,3.73687799,2676.1,2675.8,16.133]
[1747964701363,3.73671767,2676.2,2675.9,28.106]
[1747964701561,1.3864,2676.5,2675.9,28.106]
[1747964701745,1.3864,2676.8,2676.3,3.73647096]
[1747964701927,0.05,2676.9,2676.4,3.73629829]
[1747964702129,3.78573817,2676.9,2676.5,28.106]
[1747964702332,0.05,2676.9,2676.5,28.106]
[1747964702677,0.05,2676.9,2676.8,1.4671]
[1747964702881,0.05,2676.9,2676.8,17.5921]
[1747964703075,0.05,2676.9,2676.8,53.6981]
[1747964703662,0.05,2676.9,2676.8,57.43390394]
[1747964703859,0.05,2676.9,2676.8,53.6981]
[1747964704260,3.78566438,2676.9,2676.8,16.125]
[1747964704473,3.73594351,2676.7,2676.6,16.906]
[1747964705046,0.57777644,2676.9,2676.6,16.906]
[1747964705279,0.05,2676.9,2676.6,16.906]
[1747964705786,3.73594351,2676.7,2676.6,11.197]
[1747964705961,3.73594351,2676.7,2676.6,28.103]
[1747964706390,0.05,2676.9,2676.6,28.103]
[1747964706685,0.05,2676.9,2676.2,1.4197]
[1747964706857,3.73617026,2676.6,2676.4,8.0]
[1747964707061,0.05,2676.9,2676.5,28.103]
[1747964707264,3.78569223,2676.9,2676.5,28.103]
[1747964707469,3.73597483,2676.7,2676.5,28.103]
[1747964708001,3.78569223,2676.9,2676.5,28.103]
[1747964708002,3.7358216,2676.8,2676.5,28.103]
[1747964708207,3.73608309,2676.6,2676.5,36.103]
[1747964708501,3.73601307,2676.7,2676.5,36.103]
[1747964708851,3.73599794,2676.7,2676.6,8.0]
[1747964710698,0.05,2676.9,2676.6,8.0]
[1747964711050,0.05,2676.9,2676.6,15.48604095]
[1747964711311,0.05,2676.9,2676.6,15.4860243]
[1747964711511,0.05,2676.9,2676.7,1.4798]
[1747964712469,3.78580002,2676.9,2676.8,19.196]
[1747964712654,0.05,2676.9,2676.8,19.196]
[1747964712853,3.78566438,2676.9,2676.8,19.196]
[1747964713301,0.05,2676.9,2676.8,19.196]
[1747964713671,0.05,2676.9,2676.8,25.37298519]
[1747964714253,0.05,2676.9,2676.8,21.63718125]
[1747964714711,0.05,2676.9,2676.8,11.73580394]
[1747964714884,0.05,2676.9,2676.8,8.0]
[1747964715181,0.05,2676.9,2676.8,35.779]
[1747964715387,0.05,2676.9,2676.8,39.51480394]
[1747964717175,0.05,2676.9,2676.8,40.98120394]
[1747964717371,0.05,2676.9,2676.8,44.73122738]
[1747964717826,0.05,2677.9,2676.9,9.4782]
[1747964718040,0.05,2677.9,2677.7,8.0]
[1747964718198,0.04212688,2677.9,2677.8,39.51240884]
[1747964718402,0.04212688,2677.9,2677.8,42.66204891]
[1747964718834,0.04212688,2677.9,2677.8,57.16204891]
[1747964719127,0.04212688,2677.9,2677.8,29.38404891]
[1747964719334,0.04212688,2677.9,2677.8,57.16004891]
[1747964719733,0.04212688,2677.9,2677.8,58.66164891]
[1747964722130,0.04212688,2677.9,2677.8,30.88764891]
[1747964722319,0.04212688,2677.9,2677.8,58.65964891]
[1747964722524,0.04212688,2677.9,2677.8,27.15324007]
[1747964722724,0.04212688,2677.9,2677.8,50.27]
[1747964722905,0.04212688,2677.9,2677.8,35.77]
[1747964724093,0.04212688,2677.9,2677.8,8.0]
[1747964724294,3.77639627,2677.9,2677.8,35.77]
[1747964725239,3.77639627,2677.9,2677.8,8.0]
[1747964725613,3.77639627,2677.9,2677.8,24.578]
[1747964726442,3.77639627,2677.9,2677.8,35.769]
[1747964727227,3.77048842,2677.9,2677.8,8.0]
[1747964727435,3.73510626,2677.3,2677.2,0.58483064]
[1747964727595,3.73440884,2677.8,2677.2,17.16283064]
[1747964727596,1.4183,2677.4,2677.2,17.16283064]
[1747964727798,6.0,2677.8,2677.4,8.0]
[1747964728038,6.0,2677.8,2677.6,3.73467773]
[1747964728238,6.0,2677.8,2677.6,8.0]
[1747964728439,6.0,2677.8,2677.5,3.7347238]
[1747964728440,6.0,2677.8,2677.5,8.0]
[1747964728643,0.03621903,2677.9,2677.8,3.73440884]
[1747964728949,0.03621903,2677.9,2677.8,29.77620884]
[1747964729345,0.03621903,2677.9,2677.8,37.2328]
[1747964729547,0.03621903,2677.9,2677.8,35.77]
[1747964729847,3.77048842,2677.9,2677.8,35.77]
[1747964731544,3.77048842,2677.9,2677.8,35.769]
[1747964731845,0.03621903,2677.9,2677.8,35.769]
[1747964732032,3.77048842,2677.9,2677.8,35.769]
[1747964732538,0.03621903,2677.9,2677.8,35.769]
[1747964733104,0.03621903,2677.9,2677.8,39.50340884]
[1747964733361,0.03621903,2677.9,2677.8,43.25343228]
[1747964733566,0.03621903,2677.9,2677.8,23.73311676]
[1747964733855,0.03621903,2677.9,2677.8,19.98309332]
[1747964734552,0.03621903,2677.9,2677.8,21.50549332]
[1747964734752,0.03621903,2677.9,2677.8,32.69549332]
[1747964735049,0.03621903,2677.9,2677.8,1.5224]
[1747964735251,0.03621903,2677.9,2677.8,29.2894]
[1747964735414,0.03621903,2677.9,2677.8,33.02380884]
[1747964735611,0.03621903,2677.9,2677.8,41.02380884]
[1747964735815,0.03621903,2677.9,2677.8,37.2894]
[1747964736053,0.03621903,2677.9,2677.8,41.02380884]
[1747964736237,0.03621903,2677.9,2677.8,44.77383228]
[1747964736439,0.02856205,2677.9,2677.8,44.77383228]
[1747964736944,0.02856205,2677.9,2677.8,45.35866292]
[1747964738960,0.02856205,2677.9,2677.8,44.77383228]
[1747964739717,0.02856205,2677.9,2677.8,59.27383228]
[1747964740655,0.02856205,2677.9,2677.8,31.50683228]
[1747964740873,0.02856205,2677.9,2677.8,27.748]
[1747964741054,0.02856205,2677.9,2677.8,35.748]
[1747964741627,0.02856205,2677.9,2677.8,39.48240884]
[1747964741827,3.76283144,2677.9,2677.8,35.748]
[1747964742152,3.76283144,2677.9,2677.8,8.0]
[1747964742354,3.76283144,2677.9,2677.8,35.748]
[1747964742541,3.76283144,2677.9,2677.8,24.559]
[1747964742741,3.76283144,2677.9,2677.8,27.748]
[1747964742972,3.76283144,2677.9,2677.8,35.748]
[1747964743334,0.02856205,2677.9,2677.8,35.748]
[1747964744377,3.76283144,2677.9,2677.8,35.748]
[1747964744733,5.28273144,2677.9,2677.6,16.70261666]
[1747964744865,3.7345483,2677.7,2677.6,17.14761666]
[1747964745068,3.73445215,2677.8,2677.6,17.14761666]
[1747964745296,3.7345483,2677.7,2677.6,17.14761666]
[1747964745842,1.54846205,2677.9,2677.6,17.14761666]
[1747964746160,3.7345483,2677.7,2677.6,16.56]
[1747964746877,3.73445752,2677.8,2677.6,27.751]
[1747964747083,0.02856205,2677.9,2677.6,27.751]
[1747964747380,3.7345483,2677.7,2677.6,35.751]
[1747964747742,3.7345483,2677.7,2677.6,24.561]
[1747964747936,3.7345483,2677.7,2677.6,35.751]
[1747964749998,3.7345483,2677.7,2677.6,8.0]
[1747964750202,3.73468778,2677.6,2677.5,0.58761666]
[1747964750503,3.73468778,2677.6,2677.5,36.33861666]
[1747964750849,3.73510626,2677.3,2677.2,0.58761666]
[1747964751083,3.73510626,2677.3,2677.2,36.33861666]
[1747964751962,3.73510626,2677.3,2677.2,35.751]
[1747964752167,3.73496675,2677.4,2677.3,8.0]
[1747964753393,4.48194709,2677.4,2677.3,8.0]
[1747964753694,3.73496675,2677.4,2677.3,8.0]
[1747964754254,3.73457909,2677.7,2677.3,8.0]
[1747964754490,3.73476627,2677.6,2677.3,8.0]
[1747964754846,3.73485195,2677.5,2677.4,19.191]
[1747964755492,3.73485195,2677.5,2677.4,11.191]
[1747964755700,5.12004577,2677.2,2677.1,0.58761666]
[1747964756004,5.16675044,2677.2,2677.1,0.58761666]
[1747964756162,6.05693844,2677.2,2677.1,0.58761666]
[1747964756579,3.73673576,2676.2,2676.0,8.0]
[1747964756785,3.73678113,2676.1,2676.0,8.0]
[1747964756980,3.73706433,2675.9,2675.7,0.58761666]
[1747964757181,3.73654702,2676.3,2675.8,27.754]
[1747964757382,3.73712389,2675.9,2675.8,35.754]
[1747964757582,3.73720008,2675.8,2675.7,0.58761666]
[1747964757780,5.20010008,2675.8,2675.7,16.563]
[1747964758190,5.20010008,2675.8,2675.7,8.0]
[1747964758503,5.20010008,2675.8,2675.7,24.566]
[1747964758790,5.20010008,2675.8,2675.7,16.566]
[1747964759096,5.20010008,2675.8,2675.7,24.566]
[1747964760875,3.73720008,2675.8,2675.7,24.566]
[1747964761311,3.73711189,2675.9,2675.7,24.566]
[1747964761474,3.73720008,2675.8,2675.7,24.566]
[1747964762323,3.73720008,2675.8,2675.7,24.516]
[1747964762823,3.73707845,2675.9,2675.7,24.516]
[1747964763025,1.4784,2676.1,2675.7,24.516]
[1747964763026,3.73720008,2675.8,2675.7,24.516]
[1747964763191,3.73712996,2675.9,2675.7,24.516]
[1747964763535,3.73720008,2675.8,2675.7,24.516]
[1747964764428,3.73712246,2675.9,2675.7,24.516]
[1747964764825,3.73696015,2676.0,2675.8,8.0]
[1747964765029,3.73706042,2675.9,2675.8,8.0]
[1747964766532,3.73726584,2675.8,2675.5,8.0]
[1747964766732,3.73726584,2675.8,2675.7,8.0]
[1747964767613,3.73739448,2675.7,2675.5,8.0]
[1747964767812,3.73739448,2675.7,2675.6,27.768]
[1747964768750,3.73739448,2675.7,2675.6,16.571]
[1747964769048,3.73739448,2675.7,2675.6,27.768]
[1747964769464,3.73739448,2675.7,2675.6,16.571]
[1747964769613,3.73739448,2675.7,2675.6,24.571]
[1747964770186,7.4474,2676.1,2675.7,8.0]
[1747964770345,3.73720008,2675.8,2675.7,8.0]
[1747964770688,6.0,2676.1,2675.7,8.0]
[1747964770834,17.98060207,2678.7,2675.7,8.0]
[1747964770835,6.0,2677.2,2676.2,1.4187]
[1747964771140,1.4474,2677.3,2676.7,3.73583313]
[1747964771340,1.4474,2677.3,2676.8,16.548]
[1747964771571,3.73566438,2676.9,2676.8,16.548]
[1747964771727,3.73554395,2677.0,2676.9,11.197]
[1747964771927,3.73554395,2677.0,2676.8,16.548]
[1747964771928,3.73566438,2676.9,2676.8,16.548]
[1747964772132,3.73566438,2676.9,2676.8,27.745]
[1747964772831,3.73566438,2676.9,2676.8,16.548]
[1747964773035,3.73566438,2676.9,2676.8,27.745]
[1747964773974,3.73580394,2676.8,2676.7,16.124]
[1747964774133,3.73580394,2676.8,2676.7,16.547]
[1747964774134,5.15700394,2676.8,2676.7,16.547]
[1747964774335,3.73594351,2676.7,2676.6,11.196]
[1747964774775,11.73466801,2677.7,2676.6,11.196]
[1747964774984,6.0,2677.7,2676.8,3.73574582]
[1747964775139,6.0,2677.7,2676.6,11.196]
[1747964775140,3.73505249,2677.4,2676.9,16.547]
[1747964775339,3.73482726,2677.5,2676.9,32.67]
[1747964775644,4.3348035,2677.6,2676.9,32.67]
[1747964775845,1.52866205,2677.9,2677.1,9.4441]
[1747964776054,1.52866205,2677.9,2677.4,8.0]
[1747964776242,3.76286748,2677.9,2677.5,16.547]
[1747964776444,3.73455781,2677.7,2677.5,16.547]
[1747964776632,3.73468778,2677.6,2677.5,16.547]
[1747964777177,4.10815656,2677.6,2677.5,27.741]
[1747964777381,4.10815656,2677.6,2677.1,1.4441]
[1747964777382,3.73497881,2677.4,2677.3,16.546]
[1747964777875,3.73497881,2677.4,2677.3,24.546]
[1747964778437,3.73497881,2677.4,2677.3,16.546]
[1747964778640,4.66210815,2677.4,2677.3,16.546]
[1747964780591,3.73531351,2677.2,2677.1,11.195]
[1747964780794,3.73478651,2677.6,2677.3,16.544]